[Event "FIDE Womens World Cup 2021"]
[Site "Sochi"]
[Date "2021.07.12"]
[Round "1.14"]
[White "Vargas, Gabriela"]
[Black "Danielian, Elina"]
[Result "0-1"]
[ECO "E11"]
[WhiteElo "2170"]
[BlackElo "2407"]
[Annotator "NA"]
[PlyCount "110"]
[EventDate "2021.07.12"]
[EventType "k.o."]
[EventCountry "RUS"]
[SourceTitle "playchess.com"]
[Source "ChessBase"]
[SourceQuality "1"]
[TimeControl "40/5400+30:1800+30"]

1. d4 {[%emt 0:00:04]} Nf6 {[%emt 0:00:13]} 2. c4 {[%emt 0:00:21]} e6 {[%emt 0:00:21]} 3. Nf3 {[%emt 0:01:03]} Bb4+ {[%emt 0:01:07]} 4. Bd2 {[%emt 0:01:19]} c5 {[%emt 0:00:37]} 5. Bxb4 {[%emt 0:03:24]} cxb4 {[%emt 0:00:04]} 6. Nbd2 {[%emt 0:00:31]} O-O {[%emt 0:02:55]} 7. e4 {[%emt 0:04:00]} d6 {[%emt 0:00:21]} 8. Bd3 {[%emt 0:09:42]} e5 {[%emt 0:02:58]} 9. h3 {[%emt 0:04:11]} Nc6 {[%emt 0:04:49]} 10. d5 {[%emt 0:05:42]} Ne7 {[%emt 0:00:47]} 11. Nf1 {[%emt 0:04:51]} Nd7 {[%emt 0:02:16]} 12. Ne3 {[%emt 0:03:03]} Nc5 {[%emt 0:00:08]} 13. g4 {[%emt 0:14:31]} (13. Qb1 $15) 13... Ng6 {[%emt 0:00:53]} 14. Ng2 {[%emt 0:00:11]} Bd7 {[%emt 0:05:11]} 15. Qe2 {[%emt 0:02:12]} b5 {[%emt 0:06:13]} 16. O-O {[%emt 0:06:54]} Rb8 {[%emt 0:04:35]} 17. Rfe1 {[%emt 0:06:40]} Qf6 $15 {[%emt 0:02:01]} 18. cxb5 {[%emt 0:02:14]} h5 {[%emt 0:04:38]} 19. Nh2 {[%emt 0:04:22]} hxg4 {[%emt 0:13:11]} 20. hxg4 {[%emt 0:00:11]} Rfc8 {[%emt 0:04:58]} 21. Bc4 {[%emt 0:03:08]} Nf4 {[%emt 0:06:47]} 22. Nxf4 {[%emt 0:02:14]} Qxf4 {[%emt 0:00:04]} 23. b3 {[%emt 0:04:27]} g6 {[%emt 0:00:06]} 24. Qe3 {[%emt 0:01:00]} Qxe3 {[%emt 0:01:36]} 25. Rxe3 {[%emt 0:00:03]} Bxb5 {[%emt 0:00:06]} 26. Bxb5 {[%emt 0:00:13]} Rxb5 {[%emt 0:00:04]} 27. Nf3 {[%emt 0:00:20]} Nd7 {[%emt 0:01:37]} 28. g5 {[%emt 0:02:23]} Rbc5 {[%emt 0:01:11]} 29. Kg2 {[%emt 0:00:46]} Rc1 {[%emt 0:02:54]} 30. Rxc1 {[%emt 0:02:38]} Rxc1 {[%emt 0:00:02]} 31. Re2 {[%emt 0:00:16]} Nc5 {[%emt 0:07:22]} 32. Ne1 {[%emt 0:02:29]} a5 {[%emt 0:00:37]} 33. f3 {[%emt 0:06:18]} Kf8 {[%emt 0:02:13]} 34. Kf2 {[%emt 0:00:47]} Ke7 {[%emt 0:00:21]} 35. Rc2 {[%emt 0:01:17]} Rxc2+ {[%emt 0:09:47]} 36. Nxc2 {[%emt 0:00:04]} Nd3+ {[%emt 0:00:03]} 37. Ke2 {[%emt 0:00:27]} Nc1+ {[%emt 0:00:16]} 38. Kd2 {[%emt 0:00:04]} Nxa2 {[%emt 0:00:04]} 39. Ne3 {[%emt 0:00:09]} Nc3 {[%emt 0:00:34]} 40. Nc4 {[%emt 0:00:11]} a4 {[%emt 0:01:20]} 41. bxa4 {[%emt 0:30:47]} Nxa4 {[%emt 0:30:04]} 42. Kc2 {[%emt 0:01:40]} Nc3 {[%emt 0:09:41]} 43. Kb3 {[%emt 0:04:10]} Ne2 {[%emt 0:00:18]} 44. Kxb4 {[%emt 0:00:42]} Ng1 {[%emt 0:00:43]} 45. Nd2 {[%emt 0:00:00]} Nh3 {[%emt 0:00:00]} 46. Kc4 {[%emt 0:00:00]} Nxg5 {[%emt 0:00:00]} 47. Kd3 {[%emt 0:00:00]} Kd7 {[%emt 0:00:00]} 48. Ke3 {[%emt 0:00:00]} f5 {[%emt 0:00:00]} 49. exf5 {[%emt 0:00:00]} gxf5 {[%emt 0:00:00]} 50. f4 {[%emt 0:00:00]} Nf7 {[%emt 0:00:00]} 51. fxe5 dxe5 {[%emt 0:00:00]} 52. Nc4 {[%emt 0:00:00]} Ke7 {[%emt 0:00:00]} 53. Kf3 {[%emt 0:00:00]} Kf6 {[%emt 0:00:00]} 54. d6 {[%emt 0:00:01]} Ke6 {[%emt 0:00:00]} 55. d7 {[%emt 0:00:08]} Kxd7 {[%emt 0:00:00]} 0-1

[Event "FIDE Womens World Cup 2021"]
[Site "Sochi"]
[Date "2021.07.12"]
[Round "1.15"]
[White "Hoang, Thanh Trang"]
[Black "Frayna, Janelle Mae"]
[Result "1-0"]
[ECO "A48"]
[WhiteElo "2404"]
[BlackElo "2179"]
[Annotator "NA"]
[PlyCount "97"]
[EventDate "2021.07.12"]
[EventType "k.o."]
[EventCountry "RUS"]
[SourceTitle "playchess.com"]
[Source "ChessBase"]
[SourceQuality "1"]
[TimeControl "40/5400+30:1800+30"]

1. d4 {[%emt 0:00:16]} Nf6 {[%emt 0:00:10]} 2. Nf3 {[%emt 0:00:37]} g6 {[%emt 0:00:06]} 3. Bf4 {[%emt 0:00:39]} Bg7 {[%emt 0:00:38]} 4. e3 {[%emt 0:00:26]} O-O {[%emt 0:00:13]} 5. h3 {[%emt 0:01:11]} d6 {[%emt 0:00:51]} 6. c3 {[%emt 0:01:19]} c5 {[%emt 0:01:25]} 7. dxc5 {[%emt 0:01:27]} dxc5 {[%emt 0:00:04]} 8. Nbd2 {[%emt 0:00:34]} Nc6 {[%emt 0:02:29]} 9. Qc2 {[%emt 0:00:56]} b6 {[%emt 0:10:54]} 10. Be2 {[%emt 0:03:29]} Bb7 {[%emt 0:04:25]} 11. O-O {[%emt 0:02:14]} Qd7 {[%emt 0:01:35]} 12. Rfd1 {[%emt 0:08:26]} Rad8 {[%emt 0:00:09]} 13. a4 {[%emt 0:05:49]} Qc8 {[%emt 0:04:34]} 14. Nc4 {[%emt 0:04:56]} Rxd1+ {[%emt 0:01:25]} 15. Rxd1 {[%emt 0:01:01]} Rd8 {[%emt 0:00:15]} 16. Nfe5 {[%emt 0:03:35]} Nxe5 {[%emt 0:09:55]} 17. Nxe5 {[%emt 0:01:18]} Qa8 {[%emt 0:11:54]} 18. Bf3 {[%emt 0:08:10]} Bxf3 {[%emt 0:07:31]} 19. Nxf3 $11 {[%emt 0:00:27]} e6 {[%emt 0:02:35]} 20. Be5 {[%emt 0:09:24]} Ne8 {[%emt 0:05:48]} 21. Bg3 {[%emt 0:02:36]} Nf6 {[%emt 0:00:39]} 22. Be5 {[%emt 0:06:04]} Ne8 {[%emt 0:00:02]} 23. Bg3 {[%emt 0:00:45]} Nf6 {[%emt 0:00:04]} 24. Bh4 {[%emt 0:00:40]} h6 {[%emt 0:05:47]} 25. Rd3 {[%emt 0:08:57]} Rd5 {[%emt 0:03:20]} 26. Bxf6 {[%emt 0:03:01]} Bxf6 {[%emt 0:00:04]} 27. e4 {[%emt 0:01:13]} Rd8 {[%emt 0:01:54]} 28. Qd2 {[%emt 0:00:41]} Kg7 {[%emt 0:01:40]} 29. Rxd8 {[%emt 0:01:37]} Qxd8 {[%emt 0:01:19]} 30. Qxd8 {[%emt 0:03:14]} Bxd8 {[%emt 0:00:03]} 31. Kf1 {[%emt 0:00:30]} f5 {[%emt 0:03:00]} 32. Ke2 {[%emt 0:01:14]} a6 {[%emt 0:04:00]} 33. Ne5 {[%emt 0:02:41]} Bc7 {[%emt 0:02:33]} 34. Nc4 {[%emt 0:02:32]} Kf6 {[%emt 0:00:49]} 35. e5+ {[%emt 0:02:54]} Ke7 {[%emt 0:03:10]} 36. b4 {[%emt 0:01:24]} cxb4 {[%emt 0:01:52]} 37. cxb4 {[%emt 0:00:08]} b5 {[%emt 0:01:34]} 38. axb5 {[%emt 0:00:12]} axb5 {[%emt 0:00:04]} 39. Na3 {[%emt 0:00:12]} Bxe5 {[%emt 0:00:16]} 40. Nxb5 {[%emt 0:04:43]} g5 {[%emt 0:07:23]} 41. Kd3 {[%emt 0:31:02]} h5 {[%emt 0:31:28]} 42. Nd4 {[%emt 0:05:08]} Bxd4 {[%emt 0:00:00]} 43. Kxd4 {[%emt 0:00:00]} Kd6 {[%emt 0:00:00]} 44. b5 {[%emt 0:00:00]} e5+ {[%emt 0:00:00]} 45. Kc4 {[%emt 0:00:00]} h4 {[%emt 0:00:00]} 46. f3 {[%emt 0:00:00]} Kc7 {[%emt 0:00:00]} 47. Kd5 {[%emt 0:00:00]} e4 {[%emt 0:00:00]} 48. fxe4 {[%emt 0:00:00]} f4 {[%emt 0:00:00]} 49. Ke5 {[%emt 0:00:00]} 1-0

[Event "FIDE Womens World Cup 2021"]
[Site "Sochi"]
[Date "2021.07.12"]
[Round "1.16"]
[White "Wafa, Shrook"]
[Black "Unuk, Laura"]
[Result "0-1"]
[ECO "C78"]
[WhiteElo "2182"]
[BlackElo "2407"]
[Annotator "NA"]
[PlyCount "76"]
[EventDate "2021.07.12"]
[EventType "k.o."]
[EventCountry "RUS"]
[SourceTitle "playchess.com"]
[Source "ChessBase"]
[SourceQuality "1"]
[TimeControl "40/5400+30:1800+30"]

1. e4 {[%emt 0:00:07]} e5 {[%emt 0:00:28]} 2. Nf3 {[%emt 0:00:23]} Nc6 {[%emt 0:00:22]} 3. Bb5 {[%emt 0:00:32]} a6 {[%emt 0:00:31]} 4. Ba4 {[%emt 0:00:20]} Nf6 {[%emt 0:00:11]} 5. O-O {[%emt 0:00:34]} b5 {[%emt 0:00:41]} 6. Bb3 {[%emt 0:00:17]} Bc5 {[%emt 0:00:23]} 7. c3 {[%emt 0:01:52]} d6 {[%emt 0:00:57]} 8. d4 {[%emt 0:02:04]} Bb6 {[%emt 0:00:20]} 9. dxe5 {[%emt 0:02:05]} Nxe5 {[%emt 0:02:01]} 10. Nxe5 {[%emt 0:04:34]} dxe5 {[%emt 0:00:22]} 11. Qf3 {[%emt 0:04:04]} Bg4 {[%emt 0:34:43]} 12. Qg3 {[%emt 0:01:05]} Qe7 {[%emt 0:00:20]} 13. Be3 {[%emt 0:05:41]} Bxe3 {[%emt 0:17:23]} 14. Qxe3 {[%emt 0:13:17]} O-O {[%emt 0:00:14]} 15. f3 {[%emt 0:03:19]} Bd7 $11 {[%emt 0:02:49]} 16. Qg5 {[%emt 0:07:48]} h6 {[%emt 0:06:09]} 17. Qh4 {[%emt 0:00:50]} c5 {[%emt 0:00:31]} 18. c4 {[%emt 0:02:37]} Be6 {[%emt 0:03:47]} 19. Nc3 {[%emt 0:05:53]} bxc4 {[%emt 0:03:00]} 20. Bc2 {[%emt 0:00:44]} Rab8 {[%emt 0:01:31]} 21. Rab1 {[%emt 0:01:06]} Rfd8 {[%emt 0:00:16]} 22. f4 {[%emt 0:01:14]} Bd7 {[%emt 0:07:36]} 23. Kh1 {[%emt 0:10:53]} Bc6 {[%emt 0:03:25]} 24. Qe1 {[%emt 0:04:41]} Rb7 {[%emt 0:04:07]} 25. fxe5 {[%emt 0:06:51]} Qxe5 {[%emt 0:00:05]} 26. Rf5 {[%emt 0:00:42]} Qe7 {[%emt 0:05:18]} 27. e5 {[%emt 0:02:50]} Nd5 {[%emt 0:01:38]} 28. Ne4 {[%emt 0:01:34]} Nb4 {[%emt 0:00:47]} 29. Qc3 {[%emt 0:07:05]} Nxc2 {[%emt 0:01:01]} 30. Qxc2 {[%emt 0:00:07]} Rd4 {[%emt 0:00:55]} 31. Nd6 {[%emt 0:01:56]} Rd7 {[%emt 0:02:25]} 32. Rg1 {[%emt 0:07:11]} Qe6 {[%emt 0:00:49]} 33. Rf2 {[%emt 0:01:04]} Bd5 {[%emt 0:01:18]} 34. Nf5 {[%emt 0:01:24]} Rg4 {[%emt 0:00:15]} 35. Ne3 {[%emt 0:00:21]} Be4 {[%emt 0:00:33]} 36. Qxc4 {[%emt 0:00:41]} Bxg2+ {[%emt 0:00:37]} 37. Rfxg2 {[%emt 0:00:21]} Rxc4 {[%emt 0:00:04]} 38. Rxg7+ {[%emt 0:00:06]} Kf8 {[%emt 0:00:04]} 0-1

[Event "FIDE Womens World Cup 2021"]
[Site "Sochi"]
[Date "2021.07.12"]
[Round "1.17"]
[White "Zawadzka, Jolanta"]
[Black "Alboredo, Julia"]
[Result "1-0"]
[ECO "B62"]
[WhiteElo "2403"]
[BlackElo "2182"]
[Annotator "NA"]
[PlyCount "111"]
[EventDate "2021.07.12"]
[EventType "k.o."]
[EventCountry "RUS"]
[SourceTitle "playchess.com"]
[Source "ChessBase"]
[SourceQuality "1"]
[TimeControl "40/5400+30:1800+30"]

1. e4 {[%emt 0:00:04]} c5 {[%emt 0:00:12]} 2. Nf3 {[%emt 0:00:05]} Nc6 {[%emt 0:00:13]} 3. d4 {[%emt 0:00:07]} cxd4 {[%emt 0:00:09]} 4. Nxd4 {[%emt 0:00:05]} Nf6 {[%emt 0:00:22]} 5. Nc3 {[%emt 0:00:04]} d6 {[%emt 0:00:15]} 6. Bg5 {[%emt 0:00:10]} e6 {[%emt 0:00:20]} 7. Bb5 {[%emt 0:00:13]} Bd7 {[%emt 0:00:23]} 8. Qd3 {[%emt 0:00:15]} Be7 {[%emt 0:08:11]} 9. O-O-O {[%emt 0:00:18]} Qc7 {[%emt 0:12:25]} 10. f4 $14 {[%emt 0:14:10]} a6 {[%emt 0:14:34]} 11. Bxc6 {[%emt 0:02:11]} bxc6 {[%emt 0:04:01]} 12. Nb3 {[%emt 0:08:30]} e5 {[%emt 0:18:45]} 13. Rhf1 {[%emt 0:20:47]} h6 {[%emt 0:07:01]} 14. fxe5 {[%emt 0:10:19]} dxe5 {[%emt 0:00:54]} 15. Be3 {[%emt 0:00:39]} Bg4 {[%emt 0:06:25]} 16. Rd2 {[%emt 0:01:48]} a5 {[%emt 0:01:38]} 17. Nc5 {[%emt 0:03:58]} Rd8 {[%emt 0:00:41]} 18. Qc4 {[%emt 0:02:17]} Rxd2 {[%emt 0:00:19]} 19. Bxd2 {[%emt 0:00:16]} O-O {[%emt 0:01:37]} 20. h3 {[%emt 0:02:19]} Bc8 {[%emt 0:04:16]} 21. N3a4 {[%emt 0:00:25]} Nd7 {[%emt 0:04:05]} 22. Nb3 {[%emt 0:03:42]} c5 {[%emt 0:01:41]} 23. Nxa5 {[%emt 0:03:30]} Nb6 {[%emt 0:01:39]} 24. Nxb6 {[%emt 0:01:46]} Qxb6 {[%emt 0:00:05]} 25. Qc3 {[%emt 0:03:25]} Qg6 {[%emt 0:06:15]} 26. Qf3 {[%emt 0:04:20]} f5 {[%emt 0:01:24]} 27. exf5 {[%emt 0:01:43]} Rxf5 {[%emt 0:00:09]} 28. Qe2 {[%emt 0:03:32]} Ba6 {[%emt 0:00:59]} 29. Nc4 {[%emt 0:02:22]} Rxf1+ {[%emt 0:01:08]} 30. Qxf1 {[%emt 0:00:01]} Qe4 {[%emt 0:00:52]} 31. b3 {[%emt 0:00:15]} Qd4 {[%emt 0:02:40]} 32. c3 {[%emt 0:00:54]} Qd5 {[%emt 0:00:29]} 33. Ne3 {[%emt 0:05:13]} Qc6 {[%emt 0:01:03]} 34. c4 {[%emt 0:00:41]} Bg5 {[%emt 0:00:48]} 35. Qf2 {[%emt 0:02:28]} e4 {[%emt 0:01:25]} 36. Nd5 {[%emt 0:00:31]} Qg6 {[%emt 0:00:16]} 37. h4 {[%emt 0:02:25]} Bxd2+ {[%emt 0:00:09]} 38. Kxd2 {[%emt 0:00:12]} Qd6 {[%emt 0:00:42]} 39. Qf4 {[%emt 0:00:40]} Qd8 {[%emt 0:00:20]} 40. Qxe4 {[%emt 0:00:43]} Bb7 {[%emt 0:00:39]} 41. Kc2 {[%emt 0:30:51]} Kh8 {[%emt 0:01:45]} 42. a4 {[%emt 0:00:00]} Qf8 {[%emt 0:00:18]} 43. Qf3 {[%emt 0:00:00]} Qd8 {[%emt 0:00:10]} 44. g3 {[%emt 0:00:00]} Qe8 {[%emt 0:00:39]} 45. Qe3 {[%emt 0:00:00]} Qg6+ {[%emt 0:01:09]} 46. Kb2 {[%emt 0:00:00]} Bxd5 {[%emt 0:03:21]} 47. cxd5 {[%emt 0:00:00]} Qf6+ {[%emt 0:00:14]} 48. Ka2 {[%emt 0:00:00]} Qg6 {[%emt 0:03:52]} 49. Qxc5 {[%emt 0:00:00]} Qxg3 {[%emt 0:00:06]} 50. d6 {[%emt 0:00:00]} Qg2+ {[%emt 0:00:30]} 51. Ka3 {[%emt 0:00:00]} Qf1 {[%emt 0:00:10]} 52. d7 {[%emt 0:00:00]} Qa1+ {[%emt 0:00:11]} 53. Kb4 {[%emt 0:00:00]} Qe1+ {[%emt 0:00:11]} 54. Kb5 {[%emt 0:00:00]} Qe2+ {[%emt 0:00:16]} 55. Kb6 {[%emt 0:00:00]} Qe6+ {[%emt 0:00:24]} 56. Kc7 {[%emt 0:00:00]} 1-0

[Event "FIDE Womens World Cup 2021"]
[Site "Sochi"]
[Date "2021.07.12"]
[Round "1.18"]
[White "Corrales Jimenez, Zenia"]
[Black "Garifullina, Leya"]
[Result "0-1"]
[ECO "B90"]
[WhiteElo "2191"]
[BlackElo "2390"]
[Annotator "NA"]
[PlyCount "78"]
[EventDate "2021.07.12"]
[EventType "k.o."]
[EventCountry "RUS"]
[SourceTitle "playchess.com"]
[Source "ChessBase"]
[SourceQuality "1"]
[TimeControl "40/5400+30:1800+30"]

1. e4 {[%emt 0:00:04]} c5 {[%emt 0:00:13]} 2. Nf3 {[%emt 0:00:18]} d6 {[%emt 0:00:09]} 3. d4 {[%emt 0:00:34]} cxd4 {[%emt 0:00:12]} 4. Nxd4 {[%emt 0:00:09]} Nf6 {[%emt 0:00:11]} 5. Nc3 {[%emt 0:00:20]} a6 {[%emt 0:00:09]} 6. Be3 {[%emt 0:00:17]} e5 {[%emt 0:00:40]} 7. Nf3 {[%emt 0:00:38]} Be7 {[%emt 0:00:43]} 8. Bc4 {[%emt 0:00:24]} O-O {[%emt 0:00:55]} 9. O-O {[%emt 0:00:36]} Be6 {[%emt 0:02:55]} 10. Bxe6 {[%emt 0:01:11]} fxe6 {[%emt 0:00:09]} 11. Na4 {[%emt 0:00:10]} Nxe4 {[%emt 0:11:33]} 12. Qd3 {[%emt 0:13:14]} d5 {[%emt 0:03:27]} 13. Nb6 {[%emt 0:02:11]} Nc6 {[%emt 0:01:55]} 14. Nxa8 {[%emt 0:00:24]} Qxa8 {[%emt 0:00:25]} 15. Nd2 {[%emt 0:05:52]} (15. c4 $14 Nf6 16. cxd5 exd5 17. Qb3) 15... Nc5 {[%emt 0:05:57]} 16. Bxc5 {[%emt 0:01:30]} Bxc5 {[%emt 0:00:08]} 17. c4 {[%emt 0:06:18]} e4 $11 {[%emt 0:04:30]} 18. Qh3 {[%emt 0:02:14]} Qe8 {[%emt 0:04:19]} 19. Nb3 {[%emt 0:08:21]} Ba7 {[%emt 0:02:55]} 20. Rad1 {[%emt 0:03:39]} Qf7 {[%emt 0:06:46]} 21. Qg3 {[%emt 0:12:37]} Qf5 {[%emt 0:15:48]} 22. cxd5 {[%emt 0:08:29]} exd5 {[%emt 0:00:33]} 23. Nc1 {[%emt 0:00:32]} Nd4 {[%emt 0:06:21]} 24. Qc7 {[%emt 0:09:26]} Ne6 {[%emt 0:08:58]} 25. Qxb7 {[%emt 0:07:11]} Bxf2+ {[%emt 0:00:38]} 26. Kh1 {[%emt 0:00:04]} d4 {[%emt 0:02:11]} 27. Qxa6 {[%emt 0:00:38]} e3 {[%emt 0:02:44]} 28. Ne2 {[%emt 0:05:25]} Qd5 {[%emt 0:04:53]} 29. Qa3 {[%emt 0:08:39]} Rf6 {[%emt 0:06:02]} 30. Qb3 {[%emt 0:00:45]} Qe5 {[%emt 0:00:23]} 31. h3 {[%emt 0:01:10]} Kh8 {[%emt 0:04:20]} 32. Nxd4 {[%emt 0:00:34]} Nxd4 {[%emt 0:00:58]} 33. Rxd4 {[%emt 0:00:02]} g6 {[%emt 0:01:50]} 34. Rd8+ {[%emt 0:01:38]} Kg7 {[%emt 0:00:08]} 35. Rd7+ {[%emt 0:00:57]} Kh6 {[%emt 0:00:09]} 36. Qb7 {[%emt 0:00:55]} e2 {[%emt 0:00:37]} 37. Rdd1 {[%emt 0:00:35]} Bb6 {[%emt 0:01:34]} 38. Qa6 {[%emt 0:00:47]} Bc7 {[%emt 0:00:10]} 39. g3 {[%emt 0:00:23]} Rxa6 {[%emt 0:00:07]} 0-1

[Event "FIDE Womens World Cup 2021"]
[Site "Sochi"]
[Date "2021.07.12"]
[Round "1.19"]
[White "Salimova, Nurgyul"]
[Black "Aliaga Fernandez, Ingrid Y"]
[Result "1/2-1/2"]
[ECO "A05"]
[WhiteElo "2395"]
[BlackElo "2191"]
[Annotator "NA"]
[PlyCount "110"]
[EventDate "2021.07.12"]
[EventType "k.o."]
[EventCountry "RUS"]
[SourceTitle "playchess.com"]
[Source "ChessBase"]
[SourceQuality "1"]
[TimeControl "40/5400+30:1800+30"]

1. Nf3 {[%emt 0:00:07]} Nf6 {[%emt 0:00:14]} 2. g3 {[%emt 0:00:45]} d5 {[%emt 0:00:07]} 3. Bg2 {[%emt 0:00:35]} e6 {[%emt 0:00:17]} 4. O-O {[%emt 0:00:55]} c5 {[%emt 0:01:16]} 5. d4 {[%emt 0:01:24]} cxd4 {[%emt 0:05:03]} 6. Nxd4 {[%emt 0:00:51]} Be7 {[%emt 0:01:45]} 7. c4 {[%emt 0:09:47]} dxc4 {[%emt 0:04:41]} 8. Qa4+ {[%emt 0:01:47]} Nbd7 {[%emt 0:00:22]} 9. Rd1 {[%emt 0:03:01]} O-O {[%emt 0:00:19]} 10. Qxc4 {[%emt 0:00:38]} Qa5 {[%emt 0:12:26]} 11. Qb5 {[%emt 0:10:13]} Qc7 {[%emt 0:09:04]} 12. Nc3 $11 {[%emt 0:10:11]} a6 {[%emt 0:05:38]} 13. Qb3 {[%emt 0:00:53]} Nc5 {[%emt 0:08:39]} 14. Qc2 {[%emt 0:01:23]} Bd7 {[%emt 0:01:27]} 15. Bg5 {[%emt 0:08:35]} Rac8 {[%emt 0:04:44]} 16. Rac1 {[%emt 0:01:48]} Qb8 {[%emt 0:01:50]} 17. Nb3 {[%emt 0:19:46]} Rfd8 {[%emt 0:14:00]} 18. Nxc5 {[%emt 0:00:49]} Rxc5 {[%emt 0:00:32]} 19. Be3 {[%emt 0:01:52]} Rcc8 {[%emt 0:00:53]} 20. Bb6 {[%emt 0:02:12]} Re8 {[%emt 0:00:21]} 21. Qb3 {[%emt 0:02:58]} Bc6 {[%emt 0:01:19]} 22. Rc2 {[%emt 0:03:09]} Bxg2 {[%emt 0:01:15]} 23. Kxg2 {[%emt 0:00:06]} h6 {[%emt 0:03:57]} 24. Rcd2 {[%emt 0:00:33]} Rc6 {[%emt 0:03:31]} 25. f3 {[%emt 0:03:33]} Rd6 {[%emt 0:07:46]} 26. Bd4 {[%emt 0:04:05]} Rdd8 {[%emt 0:01:26]} 27. Bxf6 {[%emt 0:00:53]} Bxf6 {[%emt 0:00:06]} 28. Ne4 {[%emt 0:00:11]} Be7 {[%emt 0:03:13]} 29. Kf1 {[%emt 0:05:52]} Rxd2 {[%emt 0:00:35]} 30. Rxd2 {[%emt 0:00:09]} b5 {[%emt 0:00:48]} 31. Qe3 {[%emt 0:02:33]} Qc7 {[%emt 0:00:42]} 32. Kg2 {[%emt 0:02:41]} Rc8 {[%emt 0:02:06]} 33. Rd3 {[%emt 0:00:46]} b4 {[%emt 0:00:51]} 34. Qd2 {[%emt 0:00:57]} Qc2 {[%emt 0:01:00]} 35. h4 {[%emt 0:00:54]} f5 {[%emt 0:01:54]} 36. Nf2 {[%emt 0:00:24]} Qxd2 {[%emt 0:02:10]} 37. Rxd2 {[%emt 0:00:04]} a5 {[%emt 0:00:39]} 38. b3 {[%emt 0:01:05]} Bf6 {[%emt 0:00:25]} 39. Nd3 {[%emt 0:00:27]} g5 {[%emt 0:00:49]} 40. h5 {[%emt 0:00:26]} Kf7 {[%emt 0:00:57]} 41. e4 {[%emt 0:07:55]} Bc3 {[%emt 0:01:31]} 42. Re2 {[%emt 0:02:48]} Kf6 {[%emt 0:04:27]} 43. exf5 {[%emt 0:00:39]} exf5 {[%emt 0:00:22]} 44. g4 {[%emt 0:01:47]} Bd4 45. gxf5 {[%emt 0:12:13]} Kxf5 {[%emt 0:03:33]} 46. Ne1 {[%emt 0:04:46]} Rc1 {[%emt 0:06:38]} 47. Nc2 {[%emt 0:00:25]} Bc5 {[%emt 0:00:58]} 48. Ne1 {[%emt 0:00:43]} Bd4 {[%emt 0:01:37]} 49. Nc2 {[%emt 0:00:04]} Bc5 {[%emt 0:03:03]} 50. Ne1 {[%emt 0:00:06]} Rd1 {[%emt 0:10:56]} 51. Nc2 {[%emt 0:02:37]} Rg1+ {[%emt 0:00:41]} 52. Kh2 {[%emt 0:00:37]} Rd1 {[%emt 0:00:49]} 53. Kg2 {[%emt 0:00:29]} Rg1+ {[%emt 0:01:44]} 54. Kh2 {[%emt 0:00:06]} Rd1 {[%emt 0:00:31]} 55. Kg2 {[%emt 0:00:06]} Rg1+ {[%emt 0:01:02]} 1/2-1/2

[Event "FIDE Womens World Cup 2021"]
[Site "Sochi"]
[Date "2021.07.12"]
[Round "1.20"]
[White "Castrillon Gomez, Melissa"]
[Black "Socko, Monika"]
[Result "1/2-1/2"]
[ECO "A40"]
[WhiteElo "2201"]
[BlackElo "2393"]
[Annotator "NA"]
[PlyCount "51"]
[EventDate "2021.07.12"]
[EventType "k.o."]
[EventCountry "RUS"]
[SourceTitle "playchess.com"]
[Source "ChessBase"]
[SourceQuality "1"]
[TimeControl "40/5400+30:1800+30"]

1. d4 {[%emt 0:00:08]} Nf6 {[%emt 0:00:07]} 2. c4 {[%emt 0:00:10]} e6 {[%emt 0:00:04]} 3. g3 {[%emt 0:00:17]} Bb4+ {[%emt 0:00:42]} 4. Bd2 {[%emt 0:00:18]} c5 {[%emt 0:01:08]} 5. Bxb4 {[%emt 0:01:20]} cxb4 {[%emt 0:00:04]} 6. Bg2 {[%emt 0:00:59]} O-O {[%emt 0:00:44]} 7. Nf3 {[%emt 0:00:37]} d6 {[%emt 0:00:35]} 8. O-O {[%emt 0:00:33]} Re8 {[%emt 0:00:32]} 9. a3 {[%emt 0:02:14]} Nc6 {[%emt 0:00:18]} 10. axb4 {[%emt 0:02:44]} Nxb4 {[%emt 0:00:43]} 11. Nc3 {[%emt 0:02:15]} Bd7 {[%emt 0:08:40]} 12. e4 {[%emt 0:24:12]} e5 {[%emt 0:12:18]} 13. dxe5 {[%emt 0:07:30]} dxe5 {[%emt 0:00:09]} 14. Qd6 {[%emt 0:00:22]} Nc6 {[%emt 0:06:35]} 15. Rfd1 {[%emt 0:05:26]} Bg4 {[%emt 0:04:37]} 16. Qxd8 {[%emt 0:11:20]} Raxd8 {[%emt 0:00:41]} 17. Rxd8 $11 {[%emt 0:01:15]} Rxd8 {[%emt 0:00:09]} 18. Nd5 {[%emt 0:01:18]} Bxf3 {[%emt 0:22:14]} 19. Bxf3 {[%emt 0:00:07]} a6 {[%emt 0:00:22]} 20. Bg2 {[%emt 0:02:49]} Kf8 {[%emt 0:01:06]} 21. f4 {[%emt 0:06:44]} Rc8 {[%emt 0:05:24]} 22. Rf1 {[%emt 0:06:31]} Re8 {[%emt 0:00:37]} 23. Nc7 {[%emt 0:03:45]} Rc8 {[%emt 0:03:18]} 24. Nd5 {[%emt 0:00:12]} Re8 {[%emt 0:01:23]} 25. Nc7 {[%emt 0:00:13]} Rc8 {[%emt 0:05:01]} 26. Nd5 1/2-1/2